[Event "Czech Open-GM 2022"]
[Site "Pardubice"]
[Date "2022.07.25"]
[Round "4.10"]
[White "Tahay, Alexis"]
[Black "Dubinski, Mateusz"]
[Result "1-0"]
[ECO "B92"]
[WhiteElo "2393"]
[BlackElo "2206"]
[Annotator "TA"]
[PlyCount "95"]
[EventDate "2022.07.22"]
[EventType "swiss"]
[EventCountry "CZE"]
[SourceTitle "playchess.com"]
[Source "ChessBase"]
[SourceQuality "1"]
[TimeControl "40/5400+30:1800+30"]

{[%evp 17,95,0,8,4,17,12,5,0,0,8,11,0,0,0,5,-23,0,-14,0,-22,-18,-17,-7,-7,0,0,0,0,11,17,26,36,57,39,81,28,36,6,9,7,69,80,93,86,227,237,218,218,354,256,257,267,331,289,509,512,516,491,506,493,484,266,442,429,505,398,823,665,737,708,927,868,804,109,111,91,96,111,233,216]} 1. e4 {[%emt 0:00:06]} c5 {[%emt 0:00:07]} 2. Nf3 {[%emt 0:00:03]} d6 {[%emt 0:00:06]} 3. d4 {[%emt 0:00:03]} cxd4 {[%emt 0:00:04]} 4. Nxd4 {[%emt 0:00:04]} Nf6 {[%emt 0:00:07]} 5. Nc3 {[%emt 0:00:03]} a6 {[%emt 0:00:04]} 6. Be2 {[%emt 0:01:16]} e5 {[%emt 0:00:12]} 7. Nb3 {[%emt 0:00:03]} Be7 {[%emt 0:00:06]} 8. O-O {[%emt 0:00:18]} O-O {[%emt 0:00:06]} 9. Qd3 {[%emt 0:00:26]} Be6 {[%emt 0:00:11]} 10. Rd1 {[%emt 0:00:17] B92: Sicilian Najdorf: 6 Be2.} Nbd7 {[%emt 0:00:14]} 11. Nd5 {[%emt 0:00:18]} Bxd5 {[%emt 0:00:07]} 12. exd5 {[%emt 0:00:05] The position is equal.} Rc8 {[%emt 0:00:23]} 13. c4 {[%emt 0:07:35] [#]} a5 $146 {[%emt 0:00:31]} ({Predecessor:} 13... Ne8 14. Bd2 b6 15. Bg4 g6 16. Bxd7 Qxd7 17. Be3 Qd8 18. Nd2 a5 19. a3 Nf6 {½-½ (55) Grinberg,E (2492)-Beukes,D (2138) Dulles 2022}) 14. Bd2 {[%emt 0:06:04]} b6 {[%emt 0:00:36]} 15. Rab1 {[%emt 0:05:13]} g6 {[%emt 0:12:16]} 16. Na1 {[%emt 0:10:53][%cal Bb3a1,Ba1c2,Bc2a3,Ba3b5][%mdl 32]} (16. Bh6 {with more complications.} Re8 17. Rdc1 Bf8 18. Be3) 16... Ne8 {[%emt 0:09:58]} (16... Nc5 $5 {[%cal Rc5d3]} 17. Qc2 Nfe4 $11) 17. Qe3 {[%emt 0:08:31]} f5 {[%emt 0:04:36]} 18. Nc2 {[%emt 0:04:36]} Nef6 {[%emt 0:17:52]} 19. Na3 {[%emt 0:11:50]} Ne4 {[%emt 0:04:10]} 20. Be1 {[%emt 0:01:19]} Bg5 {[%emt 0:02:59]} 21. Qh3 {[%emt 0:00:10]} Ndf6 {[%emt 0:08:40]} 22. Nb5 {[%emt 0:02:41]} Qd7 {[%emt 0:01:25]} 23. b3 {[%emt 0:03:47][%cal Bb2b3,Bb3b4][%mdl 32]} h5 {[%emt 0:01:28]} 24. a3 {[%emt 0:01:57]} Bh6 {[%emt 0:11:42][%cal Oa5a4]} 25. b4 {[%emt 0:01:30]} a4 {[%emt 0:00:32] [#]} 26. Qd3 {[%emt 0:02:11]} ({White should try} 26. f3 $1 $16 {[%cal Rf3e4]} Be3+ 27. Kh1 Nf2+ 28. Bxf2 Bxf2 29. Bd3) 26... Ng5 $11 {[%emt 0:06:11]} 27. Bd2 {[%emt 0:04:03][%cal Be1d2,Bd2c1,Bc1f4,Bf4h6][%mdl 32]} h4 {[%emt 0:06:13]} 28. Rf1 {[%emt 0:12:54]} Nfe4 {[%emt 0:08:42]} (28... e4 $1 $11 29. Qd4 f4) 29. Bc1 $36 {[%emt 0:01:23][%mdl 2048] Black is under strong pressure.} h3 {[%emt 0:00:47] And now ...hxg2 would win.} 30. g4 {[%emt 0:01:51]} Nf6 {[%emt 0:01:55]} (30... Qg7 $16) 31. gxf5 $18 {[%emt 0:01:22]} gxf5 {[%emt 0:00:12] [#]} 32. Kh1 $1 {[%emt 0:00:43] Black must now prevent Rg1.} Rf7 {[%emt 0:01:02]} (32... f4 $142) 33. f4 {[%emt 0:06:27]} exf4 {[%emt 0:00:25]} 34. Bxf4 {[%emt 0:00:27]} Nfe4 {[%emt 0:00:29]} 35. Nd4 {[%emt 0:00:39]} Rcf8 $2 {[%emt 0:01:09]} (35... Qe7 36. Bh5 Rf6) 36. Ne6 {[%emt 0:02:08]} Nxe6 {[%emt 0:00:46]} 37. Bxh6 {[%emt 0:00:03]} Ng7 {[%emt 0:00:08]} 38. Qxh3 {[%emt 0:00:36]} Qe7 {[%emt 0:00:18][%cal Oe4f2]} 39. Rbe1 {[%emt 0:01:12]} (39. Bd3 $142) 39... Qe5 {[%emt 0:01:37]} (39... Re8 40. Rf3 Nf6) 40. Qg2 {[%emt 0:03:34]} Qc3 {[%emt 0:00:42]} 41. Rg1 {[%emt 0:03:46]} Kh7 $2 {[%emt 0:00:00] [#]} (41... Qf6 42. Bc1 Qh4) 42. Ref1 $1 {[%emt 0:08:35]} Re7 {[%emt 0:04:32] [#]} (42... Ng3+ 43. hxg3) 43. Bf3 $1 {[%emt 0:02:40] Hoping for Bxe4. A strong pair of Bishops.} Rff7 {[%emt 0:09:59]} (43... Qe5 44. Bc1) 44. Bxe4 {[%emt 0:06:16]} Rxe4 {[%emt 0:00:10]} 45. Rxf5 $2 {[%emt 0:00:31]} Rxf5 $16 {[%emt 0:01:20]} 46. Qg6+ {[%emt 0:00:01]} (46. Qxe4 $6 Kxh6 47. Rxg7 Kxg7 $11) (46. Bxg7 $2 Qf3 47. Bb2 (47. Qxf3 $2 Rxf3 48. c5 bxc5 $19) 47... Rxc4 48. Qxf3 Rxf3 49. Rg7+ Kh6 $19) 46... Kg8 {[%emt 0:00:28] aiming for ...Qf3+.} 47. Qxf5 {[%emt 0:00:10] Chess con chili.} ({But not} 47. Qxg7+ $2 Qxg7 48. Rxg7+ Kh8 $19) 47... Re1 {( -> ...Rxg1+)} 48. Qg4 {Weighted Error Value: White=0.45/Black=0.31} ({Not} 48. Bxg7 Rxg1+ 49. Kxg1 Qxg7+ 50. Kf2 Qb2+ 51. Ke1 Qc3+ 52. Kf2 Qb2+ 53. Kg1 Qc1+ 54. Qf1 (54. Kg2 Qb2+ 55. Kh1 Qc1+ 56. Kg2 Qb2+ 57. Qf2 Qxa3 $11) 54... Qe3+ 55. Kg2 Qxa3 $11) 1-0

[Event "Czech Open-GM 2022"]
[Site "Pardubice"]
[Date "2022.07.25"]
[Round "4.11"]
[White "Niedbala, Bartlomiej"]
[Black "Taborsky, Rostislav"]
[Result "1-0"]
[ECO "B48"]
[WhiteElo "2381"]
[BlackElo "2192"]
[Annotator "TA"]
[PlyCount "63"]
[EventDate "2022.07.22"]
[EventType "swiss"]
[EventCountry "CZE"]
[SourceTitle "playchess.com"]
[Source "ChessBase"]
[SourceQuality "1"]
[TimeControl "40/5400+30:1800+30"]

{[%evp 11,63,42,36,11,17,22,12,12,21,25,19,16,52,42,59,57,68,68,69,70,83,98,112,113,135,131,240,242,236,141,152,154,145,138,140,115,133,125,148,145,133,137,140,122,195,10,17,0,294,303,395,394,1194,1202]} 1. e4 {[%emt 0:00:10]} c5 {[%emt 0:01:59]} 2. Nf3 {[%emt 0:00:14]} e6 {[%emt 0:00:08]} 3. d4 {[%emt 0:00:08]} cxd4 {[%emt 0:00:02]} 4. Nxd4 {[%emt 0:00:07]} Nc6 {[%emt 0:00:05]} 5. Nc3 {[%emt 0:00:06]} Qc7 {[%emt 0:00:04]} 6. Be3 {[%emt 0:00:05]} a6 {[%emt 0:00:13]} 7. Qf3 {[%emt 0:00:06] B48: Sicilian: Taimanov: 5 Nc3 Qc7 6 Be3 a6 without Be2.} Nf6 {[%emt 0:02:23][%cal Of8a3]} 8. O-O-O {[%emt 0:02:54]} Nxd4 {[%emt 0:08:44] Recently 8...Rb8 got a lot of attention.} 9. Bxd4 {[%emt 0:01:24] The position is equal.} e5 {[%emt 0:00:49]} 10. Qg3 {[%emt 0:00:35]} d6 {[%emt 0:03:51]} 11. Be3 {[%emt 0:00:13]} b5 {[%emt 0:10:50]} 12. f4 $36 {[%emt 0:03:28][%mdl 2048] fxe5 is the strong threat. Black is under pressure.} b4 {[%emt 0:31:08]} 13. Nd5 {[%emt 0:00:18]} Nxd5 {[%emt 0:00:11]} 14. exd5 {[%emt 0:00:03] Black must now prevent fxe5.} ({Much worse is} 14. Rxd5 Be6 $15) 14... Bf5 {[%emt 0:01:41][%csl Gf5][%cal Rc7c2]} 15. Bd3 {[%emt 0:02:25]} Bxd3 {[%emt 0:03:33]} 16. Rxd3 {[%emt 0:00:29] [#] Strongly threatening fxe5.} f6 $146 {[%emt 0:01:27]} ({Predecessor:} 16... Rc8 17. Rd2 f6 18. fxe5 dxe5 19. Re1 Bd6 20. h4 O-O 21. Kb1 a5 22. h5 a4 {0-1 (39) Nilsen,T (2169)-Gasanov,Z (2231) Chess.com INT 2021}) 17. Kb1 {[%emt 0:16:12]} Kf7 {[%emt 0:06:42]} 18. Rhd1 {[%emt 0:14:05]} Be7 {[%emt 0:09:03]} (18... Re8 $16 19. fxe5 Rxe5) 19. fxe5 $18 {[%emt 0:01:16] Threatens to win with e6+.} fxe5 {[%emt 0:00:05]} 20. Qg4 {[%emt 0:11:23]} ({White should try} 20. Rf1+ $18 Bf6 21. Qg4) 20... Rhf8 $16 {[%emt 0:02:52]} 21. Qxb4 {[%emt 0:10:14] 0x0.001e39e7b451dp-1022s more active pieces.} Rab8 {[%emt 0:03:04]} 22. Qe4 {[%emt 0:04:52]} Kg8 {[%emt 0:02:25]} 23. Rc1 {[%emt 0:02:38]} a5 {[%emt 0:00:41]} 24. Rb3 {[%emt 0:02:52]} Qd7 {[%emt 0:00:27]} 25. Rxb8 {[%emt 0:00:53]} Rxb8 {[%emt 0:00:04]} 26. c4 {[%emt 0:00:40]} a4 {[%emt 0:03:22]} 27. Rc2 {[%emt 0:01:24]} Rb4 {[%emt 0:01:36] [#]} (27... Bf8 $16 {was worth a try.} 28. Rf2 g6) 28. Rf2 $2 {[%emt 0:01:54]} (28. a3 $1 $18 {[%cal Ra3b4]} Rb8 29. c5) 28... Qc8 $1 $11 {[%emt 0:03:15]} 29. Rc2 {[%emt 0:00:42] aiming for a3.} Bd8 $2 {[%emt 0:03:28][%mdl 8192]} (29... Qd7 $1 $11 {and Black is okay.}) 30. a3 $18 {[%emt 0:01:43]} Rb3 {[%emt 0:00:17]} 31. c5 {[%emt 0:00:02][%cal Oe4a4]} dxc5 $2 {[%emt 0:00:28] [#]} (31... Qa6 32. c6 Qf1+ 33. Bc1 Qf7 34. Qxa4 Rb8) 32. Qxa4 $1 {[%emt 0:00:11] Weighted Error Value: White=0.20 (precise) /Black=0.33} 1-0

[Event "Czech Open-GM 2022"]
[Site "Pardubice"]
[Date "2022.07.25"]
[Round "4.12"]
[White "Frank, Adam"]
[Black "Neuman, Petr"]
[Result "1/2-1/2"]
[ECO "B33"]
[WhiteElo "2313"]
[BlackElo "2378"]
[Annotator "TA"]
[PlyCount "75"]
[EventDate "2022.07.22"]
[EventType "swiss"]
[EventCountry "CZE"]
[SourceTitle "playchess.com"]
[Source "ChessBase"]
[SourceQuality "1"]
[TimeControl "40/5400+30:1800+30"]

{[%evp 30,75,-14,0,0,-39,-39,-52,0,5,10,9,9,15,19,0,14,0,0,0,0,0,23,0,39,52,49,45,56,56,56,56,56,56,56,56,56,56,56,56,56,0,0,0,0,0,0,0]} 1. e4 {[%emt 0:00:02]} c5 {[%emt 0:00:12]} 2. Nf3 {[%emt 0:00:09]} Nc6 {[%emt 0:00:10]} 3. d4 {[%emt 0:00:05]} cxd4 {[%emt 0:00:03]} 4. Nxd4 {[%emt 0:00:04]} Nf6 {[%emt 0:00:07]} 5. Nc3 {[%emt 0:00:07]} e5 {[%emt 0:00:06]} 6. Ndb5 {[%emt 0:00:05]} d6 {[%emt 0:00:06]} 7. Bg5 {[%emt 0:00:25]} a6 {[%emt 0:00:06]} 8. Na3 {[%emt 0:00:04]} b5 {[%emt 0:00:06]} 9. Nd5 {[%emt 0:01:36]} Be7 {[%emt 0:00:06]} 10. Bxf6 {[%emt 0:00:04]} Bxf6 {[%emt 0:00:05]} 11. c3 {[%emt 0:00:03]} O-O {[%emt 0:00:11]} 12. Nc2 {[%emt 0:00:04]} Rb8 {[%emt 0:00:05]} 13. a4 {[%emt 0:06:18]} bxa4 {[%emt 0:00:16]} 14. Ncb4 {[%emt 0:00:12]} Nxb4 {[%emt 0:00:12]} 15. cxb4 {[%emt 0:04:13] 15.cxb4 scores better than 15.Nxb4.} Bb7 {[%emt 0:00:42]} 16. Rxa4 {[%emt 0:06:13]} Qc8 {[%emt 0:00:24] B33: Sicilian: Pelikan and Sveshnikov Variations.} 17. Nc3 {[%emt 0:19:38] [#]} d5 $146 {[%emt 0:12:49]} ({Predecessor:} 17... Rd8 18. Be2 Bc6 19. Bxa6 Bxa4 20. Qxa4 Qg4 21. O-O d5 22. f3 Qf4 23. Nxd5 Rxd5 24. exd5 Qd4+ 25. Kh1 Qxb4 26. Qxb4 Rxb4 27. Rc1 g6 {½-½ (27) Huergo,J (2285)-Cruz Lima,J (2325) Cuba 1983}) 18. Nxd5 {[%emt 0:06:08]} Rd8 {[%emt 0:09:38]} (18... Bxd5 $15 19. exd5 Be7 20. Bxa6 (20. d6 Bxd6 21. Bxa6 Bxb4+ 22. Rxb4 Qxa6 $17) 20... Bxb4+ 21. Rxb4 Qxa6 22. Rxb8 Rxb8) 19. Be2 {[%emt 0:04:27]} Bc6 {[%emt 0:08:43] [#]} 20. O-O $1 {[%emt 0:13:45]} Bxa4 {[%emt 0:01:35]} 21. Qxa4 {[%emt 0:00:03]} Rd6 {[%emt 0:02:16]} 22. g3 {[%emt 0:00:39]} Qc6 {[%emt 0:03:44]} 23. Qxc6 {[%emt 0:04:29]} Rxc6 {[%emt 0:00:02]} 24. b3 $1 {[%emt 0:01:34]} Kf8 {[%emt 0:01:02]} 25. Ra1 {[%emt 0:01:24]} Bd8 {[%emt 0:03:45]} 26. Bxa6 {[%emt 0:04:14]} Bb6 {[%emt 0:07:40]} 27. Bc4 {[%emt 0:00:33]} Bd4 {[%emt 0:00:07]} 28. Ra5 {[%emt 0:04:04]} g6 {[%emt 0:00:30]} 29. b5 {[%emt 0:03:06]} Rcc8 {[%emt 0:00:32]} 30. Ra6 {[%emt 0:03:10]} Rd8 {[%emt 0:10:49]} 31. Rc6 {[%emt 0:05:49]} Rb7 {[%emt 0:03:00]} 32. b6 {[%emt 0:02:55]} Rdb8 {[%emt 0:00:10][%cal Rd4b6]} 33. Ba6 {[%emt 0:00:15]} Rxb6 {[%emt 0:00:05]} 34. Nxb6 {[%emt 0:00:29]} Rxb6 {[%emt 0:00:07]} 35. Rc8+ {[%emt 0:09:32]} (35. Rxb6 $14 Bxb6 36. Kf1) 35... Kg7 $11 {[%emt 0:00:11] The position is equal.} 36. Bc4 {[%emt 0:00:05]} Rf6 {[%emt 0:00:06]} 37. Rc7 {[%emt 0:00:13]} Bxf2+ {[%emt 0:01:05]} 38. Kg2 {[%emt 0:00:08] Weighted Error Value: White=0.07 (flawless) /Black=0.08 (flawless)} 1/2-1/2

[Event "Czech Open-GM 2022"]
[Site "Pardubice"]
[Date "2022.07.25"]
[Round "4.13"]
[White "Savitha Shri B"]
[Black "Sorensen, Hampus"]
[Result "1/2-1/2"]
[ECO "C77"]
[WhiteElo "2278"]
[BlackElo "2376"]
[Annotator "TA"]
[PlyCount "171"]
[EventDate "2022.07.22"]
[EventType "swiss"]
[EventCountry "CZE"]
[SourceTitle "playchess.com"]
[Source "ChessBase"]
[SourceQuality "1"]
[TimeControl "40/5400+30:1800+30"]

{[%evp 17,171,24,18,18,42,14,16,9,19,0,6,12,4,2,0,0,0,-22,-6,-34,0,0,0,0,7,0,0,-18,56,64,57,37,33,23,23,15,31,0,108,99,135,134,133,141,149,141,154,146,144,135,141,141,147,145,139,144,200,171,182,168,166,169,177,178,192,141,144,40,44,59,50,44,85,85,85,93,93,59,93,59,59,59,59,59,59,59,85,85,85,85,85,85,85,85,85,85,85,85,85,85,85,85,85,85,85,85,85,85,85,85,85,59,85,59,85,59,59,59,59,0,85,0,85,0,85,59,85,85,85,85,85,85,85,8,8,8,8,8,8,8,8,8,8,8,8,0,0,0,8,8,8,8,8,8,8,8]} 1. e4 {[%emt 0:00:20]} e5 {[%emt 0:00:19]} 2. Nf3 {[%emt 0:00:06]} Nc6 {[%emt 0:00:04]} 3. Bb5 {[%emt 0:00:12]} a6 {[%emt 0:00:07]} 4. Ba4 {[%emt 0:00:04]} Nf6 {[%emt 0:00:23]} 5. d3 {[%emt 0:00:07]} d6 {[%emt 0:02:55]} 6. c3 {[%emt 0:04:51]} g6 {[%emt 0:02:10]} 7. O-O {[%emt 0:00:55]} Bg7 {[%emt 0:00:11]} 8. Re1 {[%emt 0:02:31]} O-O {[%emt 0:00:24]} 9. Nbd2 {[%emt 0:02:02]} b5 {[%emt 0:13:30]} 10. Bc2 {[%emt 0:01:19] C77: Ruy Lopez: 3...a6 4 Ba4 Nf6, unusual lines.} Nb8 {[%emt 0:00:43]} 11. Nf1 {[%emt 0:04:12]} Nbd7 {[%emt 0:00:29] [#]} 12. Bg5 $146 {[%emt 0:02:46]} ({Predecessor:} 12. d4 Bb7 13. Ng3 Re8 14. h3 d5 15. dxe5 Nxe5 16. Nxe5 Rxe5 17. f4 Re8 18. e5 {0-1 (46) Panigrahi,M (2012)-Saurabh,A (2351) Bhubaneswar 2019}) 12... Re8 {[%emt 0:06:28]} 13. d4 {[%emt 0:10:47]} c5 {[%emt 0:09:33]} 14. dxe5 {[%emt 0:11:07]} dxe5 {[%emt 0:00:33]} 15. Qe2 {[%emt 0:00:39]} c4 {[%emt 0:02:20]} 16. b3 {[%emt 0:19:03]} cxb3 {[%emt 0:03:59]} 17. Bxb3 {[%emt 0:00:15]} Bb7 {[%emt 0:12:51]} 18. c4 {[%emt 0:03:51]} h6 {[%emt 0:08:32]} 19. Bxf6 {[%emt 0:01:08]} Nxf6 {[%emt 0:00:28]} 20. N1d2 {[%emt 0:05:48][%cal Bf1d2,Bd2c4,Bc4d6][%mdl 32]} bxc4 {[%emt 0:08:08]} 21. Qxc4 {[%emt 0:00:58]} Re7 {[%emt 0:03:06]} 22. Rad1 {[%emt 0:09:29][%cal Of3e5]} Nd7 {[%emt 0:06:47]} (22... Rc7 $11 23. Qe2 Qe7) 23. Qb4 $14 {[%emt 0:02:18]} Rb8 {[%emt 0:00:13]} 24. Qd6 $36 {[%emt 0:01:28][%mdl 2048] White has the initiative.} Nf8 {[%emt 0:03:35]} 25. Nc4 {[%emt 0:00:42]} Qxd6 {[%emt 0:05:05]} 26. Nxd6 {[%emt 0:00:01] Pair of Knights!} Ne6 {[%emt 0:05:09]} 27. Rb1 {[%emt 0:06:24][%cal Bd1b1,Bb1b6,Bb6a6][%mdl 32] Black must now prevent Bxe6.} Rd7 {[%emt 0:04:54]} (27... Bc6 $1 $11 {keeps the balance.}) 28. Bxe6 $16 {[%emt 0:00:44]} fxe6 {[%emt 0:00:01]} 29. Rb6 {[%emt 0:01:31] And now Reb1 would win.} (29. Rxb7 $6 Rdxb7 30. Nxb7 Rxb7 $11) (29. Nxb7 $6 Rbxb7 30. h4 Rdc7 $11) 29... Bf8 {[%emt 0:00:00]} 30. Nxb7 {[%emt 0:00:11] White is much more active.} Rdxb7 {[%emt 0:00:25]} 31. Rxa6 {[%emt 0:03:30]} Rb1 {[%emt 0:00:27] ...Rxe1+ is the strong threat.} 32. Kf1 {[%emt 0:00:33]} ({Stronger than} 32. Rxe6 Rxe1+ 33. Nxe1 Rb1 $17) 32... Rxe1+ {[%emt 0:00:13]} 33. Nxe1 {[%emt 0:00:17][%mdl 4096] Endgame KRB-KRN} Kf7 {[%emt 0:00:42]} 34. Nd3 {[%emt 0:00:55] Against Bc5} Kf6 {[%emt 0:00:02]} 35. Ke2 {[%emt 0:00:15]} g5 {[%emt 0:00:18]} 36. a4 {[%emt 0:01:48]} Rb1 {[%emt 0:00:09]} (36... Rb3 $16 {keeps fighting.} 37. Ra8 Bd6) 37. a5 {[%emt 0:02:17]} Ra1 {[%emt 0:01:25]} 38. Ra8 {[%emt 0:00:30]} Ra2+ {[%emt 0:00:02]} 39. Kd1 {[%emt 0:00:42]} Bd6 {[%emt 0:00:34]} 40. a6 {[%emt 0:00:31] Hoping for a7.} Bc7 {[%emt 0:02:04]} 41. a7 {[%emt 0:30:59]} (41. Nb4 $18 Ra1+ 42. Kc2) 41... Ke7 {[%emt 0:03:54] Inhibits Rf8.} 42. Nb2 {[%emt 0:00:00]} Bb6 $14 {[%emt 0:08:23]} 43. Nc4 {[%emt 0:00:00][%csl LRb6,LRe5]} Bxa7 {[%emt 0:05:21]} ({Weaker is} 43... Bxf2 44. Nd6 $1 $16) 44. Nxe5 {[%emt 0:00:00]} Ra1+ {[%emt 0:00:25]} 45. Kc2 {[%emt 0:00:00]} Bd4 {[%emt 0:00:27]} 46. Rxa1 {[%emt 0:00:00]} Bxa1 $16 {[%emt 0:00:01] KB-KN} 47. Nc4 {[%emt 0:00:00]} Kf6 {[%emt 0:09:14]} 48. g4 {[%emt 0:00:00]} Bd4 {[%emt 0:01:19]} 49. f3 {[%emt 0:00:00]} Ke7 {[%emt 0:01:44]} 50. Kd3 {[%emt 0:00:00]} Bg1 {[%emt 0:01:11]} 51. h3 {[%emt 0:00:00]} Bc5 {[%emt 0:00:11]} 52. e5 {[%emt 0:01:00]} Bg1 {[%emt 0:00:25]} 53. Ke4 {[%emt 0:00:34]} Kf7 {[%emt 0:00:06]} 54. Nd6+ {[%emt 0:00:16]} Kg6 {[%emt 0:00:36]} 55. Ne8 {[%emt 0:00:11]} Kf7 {[%emt 0:00:56] [#]} 56. Nf6 {[%emt 0:00:07]} Bb6 {[%emt 0:01:28]} 57. Nd7 {[%emt 0:02:08]} Ba7 {[%emt 0:00:20] [#]} 58. Kd3 $1 {[%emt 0:00:47]} Ke7 {[%emt 0:00:35]} 59. Nf6 {[%emt 0:00:04]} Kf7 {[%emt 0:01:56]} 60. Ne4 {[%emt 0:00:34]} Ke7 {[%emt 0:00:24]} 61. Nd2 {[%emt 0:00:22]} Bg1 {[%emt 0:00:28]} 62. Ke4 {[%emt 0:01:47]} Kf7 {[%emt 0:00:19]} 63. Nf1 {[%emt 0:00:46]} Kg6 {[%emt 0:00:28]} 64. Kd3 {[%emt 0:00:34]} Kf7 {[%emt 0:00:50]} 65. Kc4 {[%emt 0:00:05]} Ba7 {[%emt 0:00:22]} 66. Nd2 {[%emt 0:00:30]} Bb8 {[%emt 0:00:06]} 67. Kd4 {[%emt 0:00:03]} Ba7+ {[%emt 0:00:04]} 68. Ke4 {[%emt 0:00:02]} (68. Kd3 $14) 68... Bc5 {[%emt 0:00:27]} (68... Bg1 $1 $11) 69. Nc4 {[%emt 0:00:26]} Bg1 $1 {[%emt 0:00:18]} 70. Nd6+ {[%emt 0:00:06]} Kg6 $1 {[%emt 0:00:08]} 71. Nb7 {[%emt 0:00:54]} Kf7 {[%emt 0:00:21]} 72. f4 {[%emt 0:00:04]} gxf4 {[%emt 0:00:16]} 73. Kxf4 {[%emt 0:00:01]} Bh2+ {[%emt 0:00:24]} 74. Ke4 {[%emt 0:00:01]} Bg3 {[%emt 0:00:14]} 75. Na5 {[%emt 0:00:17]} (75. Nd8+ $16 Ke7 76. Nc6+ Kf7 77. Nd4) 75... Kg6 $11 {[%emt 0:00:28] The position is equal.} 76. Nc6 {[%emt 0:00:03] Strongly threatening Nd8.} h5 {[%emt 0:02:41]} 77. Kf3 {[%emt 0:01:09]} Bh2 {[%emt 0:00:01]} 78. h4 {[%emt 0:02:35]} hxg4+ {[%emt 0:00:02]} 79. Kxg4 {[%emt 0:00:01]} Kh6 {[%emt 0:00:13]} 80. h5 {[%emt 0:00:06]} Bg1 {[%emt 0:01:53]} 81. Kh4 {[%emt 0:02:15]} Bf2+ {[%emt 0:00:09]} 82. Kg4 {[%emt 0:00:01]} Bg1 {[%emt 0:00:04]} 83. Nd8 {[%emt 0:00:16]} Bh2 {[%emt 0:01:01]} 84. Nf7+ {[%emt 0:00:21]} Kg7 {[%emt 0:00:06]} 85. Ng5 {[%emt 0:00:01] White threatens Nf3 and mate.} Bxe5 {[%emt 0:00:09]} 86. Nxe6+ {[%emt 0:00:01] Black defended with fortune.  Weighted Error Value: White=0.10 (very precise) /Black=0.11 (very precise)} 1/2-1/2